Cogmind - Beta 13 @@@ ROGUE MODE // 2024.04.20 @ 09:28:12 Player: sick0r Result: Destroyed by D-53 Grenadier with Mini Grenade Launcher Performance ------------- Evolutions (0) 0 Regions Visited (2) 400 Robots Destroyed (26) 130 Value Destroyed (523) 523 Prototype IDs (0) 0 Alien Tech Used (0) 0 Bonus (0) 0 TOTAL SCORE: 1053 Bonus ------- None Cogmind --------- Core Integrity 0/250 Matter 281/300 Energy 249/250 System Corruption 2% Temperature Cool (22) Movement Rolling (145) Ox3 Location -10/Mines Parts ------- > --- POWER (1) -------- Ion Engine > --- PROPULSION (2) --- Compact Wheel > --- UTILITY (2) ------ High-capacity Storage Unit Hardened Light Armor Plating (fused) > --- WEAPON (2) ------- Autogun Grenade Launcher > --- INVENTORY (20) --- Light Nuclear Core Light Treads Light Treads Carbon-fiber Leg Disposable Heat Sink High-capacity Battery (250) Large Matter Pod (150) Signal Interpreter Targeting Computer Medium Armor Plating Medium Armor Plating Hardened Light Armor Plating Hardened Light Armor Plating Hardened Light Armor Plating Shield Generator Shield Generator Autogun Autogun Datajack Hammer Peak State ------------ > --- POWER ------------ Light Ion Engine > --- PROPULSION ------- Compact Wheel Compact Wheel > --- UTILITY ---------- High-capacity Storage Unit Hardened Light Armor Plating > --- WEAPON ----------- Autogun Autogun > --- INVENTORY -------- Ion Engine Light Nuclear Core Light Treads Light Treads Disposable Heat Sink Large Matter Pod Signal Interpreter Medium Armor Plating Medium Armor Plating Hardened Light Armor Plating Hardened Light Armor Plating Hardened Light Armor Plating Shield Generator Shield Generator Assault Rifle Assault Rifle Autogun Autogun Grenade Launcher [Rating: 13] Favorites ----------- Power Light Ion Engine Engine Light Ion Engine Propulsion Light Treads Treads Light Treads Wheel Compact Wheel Utility High-capacity Storage Unit Storage High-capacity Storage Unit Protection Hardened Light Armor Plating Weapon Autogun Ballistic Gun Autogun Launcher Grenade Launcher Build | -11 -10 -10 ------- Run | Yrd Mat Min Slots Evolved . | . . . Power . | . . . Propulsion . | . . . Utility . | . . . Weapon . | . . . Parts Attached 33 | 10 18 5 Power 3 | 1 1 1 Engine 3 | 1 1 1 Core . | . . . Reactor . | . . . Propulsion 12 | 6 4 2 Treads 5 | 2 2 1 Leg . | . . . Wheel 7 | 4 2 1 Hover . | . . . Flight . | . . . Utility 6 | 1 5 . Device . | . . . Storage 2 | 1 1 . Processor . | . . . Hackware . | . . . Protection 4 | . 4 . Artifact . | . . . Weapon 12 | 2 8 2 Energy Gun . | . . . Energy Cannon . | . . . Ballistic Gun 9 | 2 6 1 Ballistic Cannon . | . . . Launcher 3 | . 2 1 Special Weapon . | . . . Impact Weapon . | . . . Slashing Weapon . | . . . Piercing Weapon . | . . . Special Melee Weapon . | . . . Unidentified Prototypes . | . . . Parts Lost 7 | . 4 3 Power 1 | . . 1 Propulsion 4 | . 2 2 Utility 2 | . 2 . Weapon . | . . . Highest Loss Streak 2 | . 1 2 To Critical Strikes . | . . . Average Slot Usage (%) 99 | . 99 100 Engine 14 | . 14 14 Treads 18 | . 21 10 Wheel 9 | . 6 17 Storage 14 | . 14 14 Protection 13 | . 13 14 Ballistic Gun 27 | . 27 28 Naked Turns . | . . . Heaviest Build 56 | 11 55 56 Greatest Support 40 | 32 40 32 Greatest Overweight (x) 3 | 1 1 3 Average Overweight (x) 1 | . . 2 Largest Inventory Capacity 20 | 8 20 20 Average Capacity 17 | 7 16 20 Most Carried 20 | 7 20 20 Average Carried 14 | 3 13 18 Final Capacity 20 | 8 20 20 Final Carried 20 | 3 18 20 Class Distribution -------------------- 100% | Mutant Dominant Class ---------------- Mutant | -10/Materials Mutant | -10/Mines Resources | -11 -10 -10 ----------- Run | Yrd Mat Min Matter Collected 1258 | 200 774 284 Remotely . | . . . Salvage Created 810 | . 686 124 Parts 50 | . 42 8 Haulers Intercepted . | . . . Recyclers Shooed 1 | . 1 . Parts Field Recycled . | . . . Retrieved Matter . | . . . Parts Self-Destructed . | . . . Prevented . | . . . Kills | -11 -10 -10 ------- Run | Yrd Mat Min Combat Hostiles Destroyed 20 | . 14 6 Guns 20 | . 14 6 Classes Destroyed 8 | . 6 2 Worker 1 | . 1 . Recycler 2 | . 2 . Operator 2 | . 2 . Watcher 3 | . 3 . Swarmer 9 | . 6 3 Grunt 8 | . 8 . Sentry 1 | . . 1 Assembled 2 | . . 2 Best Kill Streak 6 | . 6 3 Combat Bots Only 5 | . 5 3 Max Kills in Single Turn 2 | . 1 2 Gunslinging 1 | . . 1 Exploded . | . . . Melee . | . . . Uniques/NPCs Destroyed . | . . . Combat | -11 -10 -10 -------- Run | Yrd Mat Min Hostile Shots Fired 160 | . 106 54 Missed 40 | . 26 14 Damage Taken 1428 | . 774 654 Core 255 | . 124 131 Absorbed by Shields . | . . . Core Remaining (%) 100 | 100 . . Volleys Fired 100 | . 73 27 Largest 2 | . 2 2 Hottest 53 | . 43 53 Shots Fired 200 | . 145 55 Gun 197 | . 143 54 Cannon . | . . . Launcher 3 | . 2 1 Special . | . . . Kinetic 197 | . 143 54 Thermal . | . . . Explosive 3 | . 2 1 Electromagnetic . | . . . Robot Hit Streak 13 | . 9 13 Robot Miss Streak 7 | . 7 4 Penetration Max . | . . . Secondary Targets 6 | . 5 1 Max Gunslinging Chain 1 | . 1 1 Shots Hit Robots 117 | . 80 37 Core Hits 49 | . 37 12 Critical Kills 2 | . 2 . Critical Parts Destroyed 1 | . . 1 Critical Strikes 3 | . 2 1 Destroy 3 | . 2 1 Melee Attacks . | . . . Impact . | . . . Slashing . | . . . Piercing . | . . . Sneak Attacks . | . . . Combat Hostiles . | . . . Follow-up Attacks . | . . . Damage Inflicted 1479 | . 914 565 Guns 1429 | . 883 546 Cannons . | . . . Explosions 50 | . 31 19 Melee . | . . . Ramming . | . . . Kinetic 1429 | . 883 546 Thermal . | . . . Explosive 50 | . 31 19 Electromagnetic . | . . . Impact . | . . . Slashing . | . . . Piercing . | . . . Highest Corruption 2 | . 2 2 Average Corruption 2 | . 2 2 Corruption Purged . | . . . Corruption Blocked . | . . . Effects 33 | . 20 13 Message Errors 6 | . 5 1 Matter Fused 13 | . 7 6 Heat Flow Errors 1 | . 1 . Energy Discharges 2 | . 1 1 Parts Rejected 1 | . . 1 Parts Fused 2 | . 2 . Data Loss (minor) 3 | . 2 1 Data Loss (major) 1 | . . 1 Misfires 2 | . 1 1 Alerts 2 | . 1 1 Overload Shots . | . . . Overflow Damage . | . . . Projectiles . | . . . Explosions . | . . . Melee . | . . . Knockbacks . | . . . Impact . | . . . Kinetic . | . . . Secondary . | . . . Self-Inflicted Damage 23 | . . 23 Shots 1 | . . 1 Rammed . | . . . Targets Rammed . | . . . Kicked . | . . . Crushed . | . . . Highest Temperature 226 | . 226 101 Average Temperature 27 | . 19 42 Received Heat Transfer 325 | . 222 103 Siege Activations . | . . . Robots Corrupted . | . . . Combat Hostiles . | . . . Parts Fried . | . . . Impact Corruptions . | . . . Robots Melted . | . . . Combat Hostiles . | . . . Parts Melted . | . . . Heat Transferred . | . . . Parts Sabotaged . | . . . Parts Stolen . | . . . Parts Stripped . | . . . Power Chain Reactions . | . . . Alert | -11 -10 -10 ------- Run | Yrd Mat Min Peak Influence 257 | . 257 90 Initial . | . . . Average 37 | . 46 16 Maximum Alert Level 1 | . 1 . Low Security (%) 99 | 100 99 100 Level 1 . | . . . Level 2 . | . . . Level 3 . | . . . Level 4 . | . . . Level 5 . | . . . High Security . | . . . Max Security . | . . . Squads Dispatched 2 | . 2 . Investigation . | . . . Extermination . | . . . Reinforcement 2 | . 2 . Assault . | . . . Garrison . | . . . Intercept . | . . . Searches Triggered . | . . . Construction Impeded . | . . . Haulers Reinforced . | . . . Active Scanning Responses . | . . . Cargo Convoy Interrupts . | . . . Stealth | -11 -10 -10 --------- Run | Yrd Mat Min Distress Signals 3 | . 3 . Communications Jammed . | . . . Distress Signals . | . . . Times Spotted 34 | . 23 11 Peak Tracking Total 5 | . 5 3 Tactical Retreats 1 | . . 1 Traps | -11 -10 -10 ------- Run | Yrd Mat Min Traps Triggered 1 | . 1 . Indirectly . | . . . Trap Hack Attempts . | . . . Triggered . | . . . Disarmed . | . . . Reprogrammed . | . . . Reused . | . . . Traps Extracted . | . . . Installed . | . . . Triggered . | . . . Machines | -11 -10 -10 ---------- Run | Yrd Mat Min Machines Disabled 2 | . 1 1 Max in Single Turn 1 | . 1 1 Machines Repaired . | . . . Machines Dismantled . | . . . Machines Sabotaged . | . . . Overloaded Fab Kills . | . . . Hacking | -11 -10 -10 --------- Run | Yrd Mat Min Machines Accessed 2 | . 2 . Terminals 2 | . 2 . Fabricators . | . . . Repair Stations . | . . . Recycling Units . | . . . Scanalyzers . | . . . Garrison Access . | . . . Total Hacks 2 | . 2 . Successful 1 | . 1 . Failed 1 | . 1 . Catastrophic . | . . . Database Lockouts . | . . . Manual . | . . . Terminals 2 | . 2 . Fabricators . | . . . Repair Stations . | . . . Recycling Units . | . . . Scanalyzers . | . . . Garrison Access . | . . . Terminal Hacks 1 | . 1 . Transport Status 1 | . 1 . Fabricator Hacks . | . . . Repair Station Hacks . | . . . Recycling Unit Hacks . | . . . Scanalyzer . | . . . Garrison Access Hacks . | . . . Unauthorized Hacks . | . . . Terminals . | . . . Fabricators . | . . . Repair Stations . | . . . Recycling Units . | . . . Scanalyzers . | . . . Garrison Access . | . . . Data Cores Recovered . | . . . Used . | . . . Hacking Detections 1 | . 1 . Full Trace Events . | . . . Feedback Events . | . . . Feedback Blocked . | . . . Robot Schematics Acquired . | . . . Robots Built . | . . . Authchips . | . . . Time . | . . . Total Robot Build Rating . | . . . Part Schematics Acquired . | . . . Parts Built . | . . . Authchips . | . . . Time . | . . . Total Part Build Rating . | . . . Parts Repaired . | . . . Time . | . . . Parts Recycled . | . . . Recycled Matter . | . . . Retrieved Matter . | . . . Retrieved Components . | . . . Parts Scanalyzed . | . . . Part Schematics Acquired . | . . . Parts Damaged . | . . . Bothacking | -11 -10 -10 ------------ Run | Yrd Mat Min Used RIF Installer . | . . . Robots Hacked . | . . . Non-combat . | . . . Combat . | . . . Robot Hacks Applied . | . . . Relay Couplers Released . | . . . Fabnet Peak Effective % . | . . . Robots Rewired . | . . . Allies Hacked . | . . . Hacks Repelled . | . . . Allies | -11 -10 -10 -------- Run | Yrd Mat Min Total Allies . | . . . Largest Group . | . . . Highest-Rated Group . | . . . Highest-Rated Ally . | . . . Total Orders . | . . . Ally Attacks . | . . . Total Damage . | . . . Kills . | . . . Allies Corrupted . | . . . Allies Melted . | . . . Intel | -11 -10 -10 ------- Run | Yrd Mat Min Robot Analysis Total . | . . . Derelict Logs Recovered 2 | . . 2 Drone Launches . | . . . Drone Recoveries . | . . . Exploration | -11 -10 -10 ------------- Run | Yrd Mat Min Turns Passed 3022 | 80 2136 806 Spaces Moved 1511 | 46 984 481 Core 23 | 23 . . Treads 692 | . 692 . Legs . | . . . Wheels 796 | 23 292 481 Hover . | . . . Flight . | . . . Fastest Speed 50 | 50 100 115 Average Speed 167 | 84 185 139 Slowest Speed 240 | 100 240 145 Overloaded Moves . | . . . Propulsion Burnouts . | . . . Robots Hopped . | . . . Cave-ins Triggered . | . . . Exploration Rate (%) 61 | 5 95 84 Regions Visited 2 Branch Regions 1 Pre-discovered Areas 1 | . . 1 Known Exits Taken . | . . . Unknown Exits Taken 2 | 1 1 . Scrap Searched 3 | . . 3 Spaces Dug . | . . . Terrain Destroyed 23 | . 18 5 Melee . | . . . Projectile . | . . . AOE 23 | . 18 5 Terrain Rammed . | . . . Walls Destroyed . | . . . Machines Disabled . | . . . Actions | -11 -10 -10 --------- Run | Yrd Mat Min Total 1832 | 84 1174 574 Wait 135 | 21 58 56 Move 1509 | 45 983 481 Hop . | . . . Pick Up 41 | 8 28 5 Fast Attach 2 | 1 1 . Attach 16 | 5 8 3 Detach 1 | . 1 . Swap 15 | 4 9 2 Drop 13 | . 13 . Fire 100 | . 73 27 Melee . | . . . Ram . | . . . Kick . | . . . Crush . | . . . Escape Stasis . | . . . Rewire . | . . . Trap . | . . . Miscellaneous . | . . . Route ------- -11/Scrapyard -10/Materials (discovered 4 exits: [*Mat x3] / [*Min]) -10/Mines History --------- Turn | Location | Event 18 | -11/Scrapyard | Discovered new exit (range 15) 81 | -11/Scrapyard | Entered Materials 324 | -10/Materials | Build established: Mutant 582 | -10/Materials | Discovered new exit (range 15) 642 | -10/Materials | Discovered new exit (range 16) 1537 | -10/Materials | Discovered new exit (range 15) 1645 | -10/Materials | Discovered new exit (range 16) 2217 | -10/Materials | Entered Mines 2221 | -10/Mines | Met a Derelict bent on vengeance 2225 | -10/Mines | Core integrity fell below 50% 2540 | -10/Mines | Assembled infested the area 2704 | -10/Mines | Learned location of Zion (-7) 2774 | -10/Mines | Learned Materials garrison access intel 3020 | -10/Mines | Core integrity fell below 20% 3023 | -10/Mines | Destroyed by D-53 Grenadier with Mini Grenade Launcher Last Messages --------------- System corrupted: Matter fused (-6). Acquired derelict log, extracted data. World map updated: -7/Zion. KZL>5XDC8=4XQVWUE9BBZ56BY Acquired derelict log, extracted data. Data stored: Materials garrison access intel. The unstable cave ceiling collapses. System corrupted: Matter fused (-7). Acquired 7 matter. as-70198 destroyed. Acquired 81 matter. Acquired Wheel. Acquired 10 matter. Acquired Carbon-fiber Leg. Searching scrap... Found Flight Unit. Found 24 Matter. System corrupted: Component data lost. The unstable cave ceiling collapses. Wheel destroyed. Map ----- +----------------------------------------------------+ | ####### #????????# ##??????? | | ########### #????????# ##???????? | | #?????????# #????????## #????????? | | #####?????# #### #?????????## ##???????? | | ##????# #??## #??????????## #???????? | | #????# #???## ##???????????# #???????? | | #??###[#????####????????????# #???????? | | ### ##??# #????????????????????# ##???????? | | ##?# #???# ###????????????????????# ####????????? | | ???# #???# #??????????????????????# #???????????? | | ???# ##### #??????????????????????#!#???????????? | | ???# #??????????????????????#%########## ## | | ???## #??????????????????????# ! | | ????#########?????????##???????????###### ######## | | ??????????????????????# ?????########### #??????? | | ??????????????????????# ?????# %= #??????? | | ??????????????????????# ?????# ######### #??????? | | ?????????????????????## ?????# #???##### ######## | | ???????????????????### ?????# #???# | | ??????????????????## ?????# #???# | | ???????????? ###### ###### ##### """ """ """ | | ??????????? d # """ """ """ | | ??????????? d ######## """ """ """ | | ?????????? #??????# | | ?????????? ##?????# """ """ """ | | ?????????? @ #?????# """ """ """ | | ?????????????# ###?????# """ """ """ | | ?????????????######### ??????# | | ?????????????????????# ##?????# | | ?????????????????????## ###??????# | | ??????????????????????######????????############## | | ?????????????????????????????????????????????????? | | ?????????????????????????????????????????????????? | | ?????????????????????????????????????????????????? | | | | | | | | | | | | | | | | | | | | | | | | | | | | | | | | | +----------------------------------------------------+ Best States ------------- Heat Dissipation 25 Energy Generation 10 Energy Capacity 250 Matter Stores 300 Matter Capacity 300 Sight Range 16 Terrain Scan Density 10 Armor Coverage 225 Evasion (%) 50 Recoil Reduction 2 Item Schematics ----------------- None Robot Schematics ------------------ None Fabricated ------------ Nothing Alien Tech Used ----------------- None Achievements -------------- None Challenges ------------ None Game ------ Seed RelayVortexActivator Manual? 0 Play Time 00:20:44 Cumulative 27.8 hours Start 2024.04.20 @ 09:09:21 End 2024.04.20 @ 09:28:12 Sessions 1 Manual Loads 0 Difficulty Rogue Special Mode None Game No. 30 Rogue 30 Adventurer 0 Explorer 0 Win Type - Total 0 Types 0/0/0/0/0/0/0/0/0 Lore% 15 Gallery% 23 Achievement% 100 Wizard Run 0 Options --------- Layout 1 ASCII 0 Keyboard 0 Movement Mouse Keybinds 0 Fullscreen 1 Font 24/Smallcaps Map View 50x35 Zoom Use 0% Tactical HUD 0 Map Filters NONE Filters NONE Steam 1 RUN: 67adc3d7-8d92-4035-9f1a-d2a26acadf0d